[Event "Titled Tuesday Blitz November 29 Early 2022"]
[White "Indjic, Aleksandar"]
[Black "Deac, Bogdan-Daniel"]
[WhiteFideId "911925"]
[BlackFideId "1226380"]
[WhiteElo "2592"]
[BlackElo "2648"]
[Result "1-0"]
[Round "11"]
[TimeControl "180+1"]
[Date "2022.11.29"]
[WhiteClock "0:00:10"]
[BlackClock "0:00:05"]

1. d4 {[%clk 0:03:00]}  Nf6 {[%clk 0:02:59]} 2. c4 {[%clk 0:03:01]}  e6 {[%clk 0:03:00]} 3. Nf3 {[%clk 0:03:00]}  d5 {[%clk 0:02:59]} 4. Nc3 {[%clk 0:03:00]}  dxc4 {[%clk 0:02:49]} 5. Qa4+ {[%clk 0:02:59]}  c6 {[%clk 0:02:34]} 6. Qxc4 {[%clk 0:02:59]}  b5 {[%clk 0:02:34]} 7. Qd3 {[%clk 0:02:59]}  a6 {[%clk 0:02:33]} 8. g4 {[%clk 0:02:58]}  c5 {[%clk 0:02:32]} 9. g5 {[%clk 0:02:52]}  c4 {[%clk 0:02:32]} 10. Qe3 {[%clk 0:02:52]}  Nd5 {[%clk 0:02:31]} 11. Nxd5 {[%clk 0:02:52]}  Qxd5 {[%clk 0:02:32]} 12. Bg2 {[%clk 0:02:52]}  Bb7 {[%clk 0:02:23]} 13. O-O {[%clk 0:02:50]}  Be7 {[%clk 0:01:57]} 14. b3 {[%clk 0:02:49]}  cxb3 {[%clk 0:01:49]} 15. axb3 {[%clk 0:02:47]}  O-O {[%clk 0:01:45]} 16. Nh4 {[%clk 0:02:42]}  Qd7 {[%clk 0:01:44]} 17. Bxb7 {[%clk 0:02:39]}  Qxb7 {[%clk 0:01:43]} 18. Qf3 {[%clk 0:02:29]}  Nc6 {[%clk 0:01:35]} 19. Qg4 {[%clk 0:02:28]}  Rad8 {[%clk 0:01:06]} 20. Nf3 {[%clk 0:02:27]}  a5 {[%clk 0:00:43]} 21. Bb2 {[%clk 0:02:09]}  Qd7 {[%clk 0:00:36]} 22. Qe4 {[%clk 0:01:44]}  f5 {[%clk 0:00:26]} 23. gxf6 {[%clk 0:01:22]}  Rxf6 {[%clk 0:00:26]} 24. Rac1 {[%clk 0:01:20]}  Nb4 {[%clk 0:00:21]} 25. Ne5 {[%clk 0:01:18]}  Qe8 {[%clk 0:00:20]} 26. Kh1 {[%clk 0:01:15]}  Bd6 {[%clk 0:00:20]} 27. f4 {[%clk 0:00:50]}  Nd5 {[%clk 0:00:19]} 28. e3 {[%clk 0:00:47]}  a4 {[%clk 0:00:19]} 29. bxa4 {[%clk 0:00:46]}  bxa4 {[%clk 0:00:20]} 30. Rg1 {[%clk 0:00:46]}  a3 {[%clk 0:00:19]} 31. Ba1 {[%clk 0:00:46]}  Rc8 {[%clk 0:00:17]} 32. Rb1 {[%clk 0:00:39]}  Bxe5 {[%clk 0:00:17]} 33. Qxe5 {[%clk 0:00:37]}  Rg6 {[%clk 0:00:07]} 34. e4 {[%clk 0:00:37]}  Nf6 {[%clk 0:00:06]} 35. Rxg6 {[%clk 0:00:15]}  hxg6 {[%clk 0:00:06]} 36. d5 {[%clk 0:00:12]}  a2 {[%clk 0:00:05]} 37. Rb7 {[%clk 0:00:10]} 1-0


[Site "https://www.chess.com"]

[Event "Titled Tuesday Blitz November 29 Early 2022"]
[White "Ismayil, Malak"]
[Black "Gabrielian, Artur"]
[WhiteFideId "13412604"]
[BlackFideId "4131002"]
[WhiteElo "1879"]
[BlackElo "2432"]
[Result "0-1"]
[Round "11"]
[TimeControl "180+1"]
[Date "2022.11.30"]
[WhiteClock "0:00:50"]
[BlackClock "0:01:40"]

1. e4 {[%clk 0:02:40]}  c5 {[%clk 0:02:57]} 2. Nf3 {[%clk 0:02:39]}  e6 {[%clk 0:02:57]} 3. b3 {[%clk 0:02:37]}  Nc6 {[%clk 0:02:55]} 4. Bb2 {[%clk 0:02:37]}  b6 {[%clk 0:02:55]} 5. g3 {[%clk 0:02:37]}  Bb7 {[%clk 0:02:55]} 6. Bg2 {[%clk 0:02:38]}  Nf6 {[%clk 0:02:54]} 7. d3 {[%clk 0:02:38]}  d6 {[%clk 0:02:54]} 8. O-O {[%clk 0:02:37]}  Be7 {[%clk 0:02:54]} 9. Nbd2 {[%clk 0:02:38]}  O-O {[%clk 0:02:54]} 10. Qe2 {[%clk 0:02:36]}  Nd7 {[%clk 0:02:54]} 11. Rad1 {[%clk 0:02:34]}  Bf6 {[%clk 0:02:54]} 12. c3 {[%clk 0:02:32]}  d5 {[%clk 0:02:54]} 13. Nb1 {[%clk 0:02:19]}  Re8 {[%clk 0:02:51]} 14. Qc2 {[%clk 0:02:19]}  Rc8 {[%clk 0:02:45]} 15. Rfe1 {[%clk 0:02:13]}  d4 {[%clk 0:02:44]} 16. c4 {[%clk 0:01:58]}  e5 {[%clk 0:02:43]} 17. a3 {[%clk 0:01:57]}  g6 {[%clk 0:02:42]} 18. Bh3 {[%clk 0:01:55]}  Rc7 {[%clk 0:02:41]} 19. Nbd2 {[%clk 0:01:50]}  Bc8 {[%clk 0:02:41]} 20. Nf1 {[%clk 0:01:50]}  Nf8 {[%clk 0:02:40]} 21. Bxc8 {[%clk 0:01:49]}  Rxc8 {[%clk 0:02:39]} 22. Bc1 {[%clk 0:01:48]}  Bg7 {[%clk 0:02:39]} 23. Bg5 {[%clk 0:01:48]}  Bf6 {[%clk 0:02:36]} 24. Bd2 {[%clk 0:01:43]}  a6 {[%clk 0:02:36]} 25. b4 {[%clk 0:01:42]}  Ne6 {[%clk 0:02:35]} 26. Qa4 {[%clk 0:01:40]}  Be7 {[%clk 0:02:22]} 27. Rb1 {[%clk 0:01:29]}  Bd6 {[%clk 0:02:17]} 28. Qxa6 {[%clk 0:01:18]}  Qf6 {[%clk 0:02:13]} 29. Kg2 {[%clk 0:01:11]}  Bc7 {[%clk 0:01:59]} 30. b5 {[%clk 0:00:57]}  Ra8 {[%clk 0:01:50]} 31. Qb7 {[%clk 0:00:57]}  Na5 {[%clk 0:01:49]} 32. Qd5 {[%clk 0:00:55]}  Red8 {[%clk 0:01:45]} 33. Bg5 {[%clk 0:00:50]}  Nxg5 {[%clk 0:01:40]} 0-1


[Site "https://www.chess.com"]

[Event "Titled Tuesday Blitz November 29 Early 2022"]
[White "Jimenez, Joaquin"]
[Black "Bowden, Karl"]
[WhiteFideId "109860"]
[BlackFideId "400548"]
[WhiteElo "2163"]
[BlackElo "2467"]
[Result "1/2-1/2"]
[Round "11"]
[TimeControl "180+1"]
[Date "2022.11.30"]
[WhiteClock "0:00:16"]
[BlackClock "0:00:10"]

1. c4 {[%clk 0:03:00]}  e5 {[%clk 0:02:59]} 2. Nc3 {[%clk 0:03:00]}  Nc6 {[%clk 0:03:00]} 3. g3 {[%clk 0:02:59]}  d6 {[%clk 0:03:00]} 4. Bg2 {[%clk 0:03:00]}  Be6 {[%clk 0:03:01]} 5. d3 {[%clk 0:02:59]}  Qd7 {[%clk 0:03:01]} 6. Rb1 {[%clk 0:02:58]}  h5 {[%clk 0:02:59]} 7. h4 {[%clk 0:02:56]}  Nh6 {[%clk 0:02:58]} 8. b4 {[%clk 0:02:54]}  g6 {[%clk 0:02:56]} 9. b5 {[%clk 0:02:54]}  Nd8 {[%clk 0:02:56]} 10. Nf3 {[%clk 0:02:51]}  f6 {[%clk 0:02:54]} 11. a4 {[%clk 0:02:44]}  Bg7 {[%clk 0:02:53]} 12. a5 {[%clk 0:02:43]}  a6 {[%clk 0:02:53]} 13. bxa6 {[%clk 0:02:40]}  Rxa6 {[%clk 0:02:53]} 14. Bd2 {[%clk 0:02:38]}  O-O {[%clk 0:02:50]} 15. Nd5 {[%clk 0:02:31]}  c6 {[%clk 0:02:09]} 16. Nb6 {[%clk 0:02:30]}  Qf7 {[%clk 0:01:58]} 17. Qc1 {[%clk 0:02:19]}  d5 {[%clk 0:01:55]} 18. Bxh6 {[%clk 0:02:17]}  Rxa5 {[%clk 0:01:53]} 19. Bxg7 {[%clk 0:02:09]}  Kxg7 {[%clk 0:01:53]} 20. O-O {[%clk 0:02:06]}  Bg4 {[%clk 0:01:41]} 21. cxd5 {[%clk 0:02:06]}  cxd5 {[%clk 0:01:41]} 22. Qd2 {[%clk 0:01:55]}  Nc6 {[%clk 0:01:39]} 23. Rfc1 {[%clk 0:01:54]}  Ra6 {[%clk 0:01:30]} 24. Nh2 {[%clk 0:01:51]}  Be6 {[%clk 0:01:23]} 25. Rc5 {[%clk 0:01:51]}  Rd8 {[%clk 0:01:11]} 26. Nf3 {[%clk 0:01:40]}  Qe7 {[%clk 0:01:04]} 27. Qc1 {[%clk 0:01:37]}  Ra2 {[%clk 0:00:54]} 28. Rc2 {[%clk 0:01:35]}  Ra6 {[%clk 0:00:51]} 29. Rcb2 {[%clk 0:01:32]}  e4 {[%clk 0:00:48]} 30. dxe4 {[%clk 0:01:30]}  dxe4 {[%clk 0:00:48]} 31. Ne1 {[%clk 0:01:24]}  f5 {[%clk 0:00:44]} 32. Nc4 {[%clk 0:01:22]}  Bc8 {[%clk 0:00:38]} 33. Ne3 {[%clk 0:01:20]}  Nd4 {[%clk 0:00:36]} 34. Kf1 {[%clk 0:01:13]}  Rc6 {[%clk 0:00:35]} 35. N1c2 {[%clk 0:01:08]}  Qc5 {[%clk 0:00:29]} 36. Qe1 {[%clk 0:01:07]}  Ne6 {[%clk 0:00:24]} 37. Nb4 {[%clk 0:01:07]}  Rcd6 {[%clk 0:00:24]} 38. Rc2 {[%clk 0:00:57]}  Qa5 {[%clk 0:00:22]} 39. Qc3+ {[%clk 0:00:57]}  Kh7 {[%clk 0:00:21]} 40. Nbd5 {[%clk 0:00:43]}  Rxd5 {[%clk 0:00:19]} 41. Qxa5 {[%clk 0:00:34]}  Rxa5 {[%clk 0:00:19]} 42. Rbc1 {[%clk 0:00:33]}  Bd7 {[%clk 0:00:18]} 43. Nc4 {[%clk 0:00:34]}  Rc5 {[%clk 0:00:18]} 44. Ne5 {[%clk 0:00:33]}  Rxc2 {[%clk 0:00:17]} 45. Rxc2 {[%clk 0:00:33]}  Bc6 {[%clk 0:00:17]} 46. Ke1 {[%clk 0:00:32]}  Rd6 {[%clk 0:00:17]} 47. Nxc6 {[%clk 0:00:32]}  Rxc6 {[%clk 0:00:16]} 48. Rb2 {[%clk 0:00:29]}  b6 {[%clk 0:00:16]} 49. e3 {[%clk 0:00:29]}  Kg7 {[%clk 0:00:16]} 50. Bf1 {[%clk 0:00:29]}  Kf6 {[%clk 0:00:16]} 51. Bb5 {[%clk 0:00:29]}  Rd6 {[%clk 0:00:16]} 52. Bc4 {[%clk 0:00:26]}  Nc5 {[%clk 0:00:16]} 53. Ra2 {[%clk 0:00:25]}  Ke5 {[%clk 0:00:15]} 54. Ra8 {[%clk 0:00:24]}  Nd3+ {[%clk 0:00:12]} 55. Ke2 {[%clk 0:00:23]}  Nc1+ {[%clk 0:00:12]} 56. Kf1 {[%clk 0:00:23]}  Rd1+ {[%clk 0:00:11]} 57. Kg2 {[%clk 0:00:23]}  Rd6 {[%clk 0:00:10]} 58. Re8+ {[%clk 0:00:20]}  Kf6 {[%clk 0:00:10]} 59. Rf8+ {[%clk 0:00:20]}  Ke5 {[%clk 0:00:11]} 60. Rc8 {[%clk 0:00:20]}  Nd3 {[%clk 0:00:10]} 61. Re8+ {[%clk 0:00:19]}  Kf6 {[%clk 0:00:09]} 62. Rf8+ {[%clk 0:00:19]}  Ke5 {[%clk 0:00:10]} 63. Re8+ {[%clk 0:00:16]}  Kf6 {[%clk 0:00:10]} 64. Rf8+ {[%clk 0:00:16]}  Ke5 {[%clk 0:00:10]} 65. Re8+ {[%clk 0:00:16]} 1/2-1/2


[Site "https://www.chess.com"]

[Event "Titled Tuesday Blitz November 29 Early 2022"]
[White "Koridze, Lile"]
[Black "Vlassov, Nikolai"]
[WhiteFideId "13612514"]
[BlackFideId "4103360"]
[WhiteElo "2050"]
[BlackElo "2324"]
[Result "1-0"]
[Round "11"]
[TimeControl "180+1"]
[Date "2022.11.30"]
[WhiteClock "0:00:51"]
[BlackClock "0:00:21"]

1. d4 {[%clk 0:03:00]}  Nf6 {[%clk 0:02:59]} 2. c4 {[%clk 0:03:00]}  Nc6 {[%clk 0:02:59]} 3. Nf3 {[%clk 0:02:56]}  e6 {[%clk 0:02:59]} 4. Nc3 {[%clk 0:02:41]}  Bb4 {[%clk 0:02:58]} 5. e3 {[%clk 0:02:40]}  Bxc3+ {[%clk 0:02:50]} 6. bxc3 {[%clk 0:02:40]}  O-O {[%clk 0:02:50]} 7. Bd3 {[%clk 0:02:39]}  b6 {[%clk 0:02:50]} 8. O-O {[%clk 0:02:37]}  Na5 {[%clk 0:02:50]} 9. c5 {[%clk 0:02:36]}  Bb7 {[%clk 0:02:45]} 10. Ba3 {[%clk 0:02:35]}  Re8 {[%clk 0:02:43]} 11. Ne5 {[%clk 0:02:29]}  d6 {[%clk 0:02:42]} 12. cxd6 {[%clk 0:02:29]}  cxd6 {[%clk 0:02:42]} 13. Ng4 {[%clk 0:02:27]}  Ne4 {[%clk 0:02:31]} 14. Bxe4 {[%clk 0:02:18]}  Bxe4 {[%clk 0:02:30]} 15. f3 {[%clk 0:02:18]}  Bg6 {[%clk 0:02:22]} 16. e4 {[%clk 0:02:15]}  Nc4 {[%clk 0:02:19]} 17. Bc1 {[%clk 0:02:13]}  Rc8 {[%clk 0:02:16]} 18. Qd3 {[%clk 0:02:10]}  d5 {[%clk 0:02:16]} 19. Re1 {[%clk 0:02:08]}  Qh4 {[%clk 0:02:10]} 20. Nf2 {[%clk 0:02:03]}  Re7 {[%clk 0:02:04]} 21. g3 {[%clk 0:01:36]}  Qh5 {[%clk 0:02:03]} 22. Qe2 {[%clk 0:01:29]}  Rec7 {[%clk 0:02:01]} 23. Bf4 {[%clk 0:01:28]}  Rc6 {[%clk 0:02:00]} 24. g4 {[%clk 0:01:26]}  Qh4 {[%clk 0:01:53]} 25. exd5 {[%clk 0:01:25]}  Rd6 {[%clk 0:01:04]} 26. Bxd6 {[%clk 0:01:23]}  Nxd6 {[%clk 0:01:04]} 27. dxe6 {[%clk 0:01:24]}  Re8 {[%clk 0:00:59]} 28. d5 {[%clk 0:01:19]}  Qf6 {[%clk 0:00:53]} 29. Qe5 {[%clk 0:01:16]}  Qd8 {[%clk 0:00:37]} 30. exf7+ {[%clk 0:01:12]}  Bxf7 {[%clk 0:00:36]} 31. Qf4 {[%clk 0:01:11]}  Rf8 {[%clk 0:00:36]} 32. Qg3 {[%clk 0:01:03]}  Bxd5 {[%clk 0:00:27]} 33. Rad1 {[%clk 0:01:01]}  Rxf3 {[%clk 0:00:27]} 34. Qe5 {[%clk 0:00:53]}  Rxf2 {[%clk 0:00:23]} 35. Qxd5+ {[%clk 0:00:51]}  Rf7 {[%clk 0:00:21]} 36. Qxd6 {[%clk 0:00:51]} 1-0


[Site "https://www.chess.com"]

[Event "Titled Tuesday Blitz November 29 Early 2022"]
[White "Kosakowski, Jakub"]
[Black "Sadhwani, Raunak"]
[WhiteFideId "1185080"]
[BlackFideId "35093487"]
[WhiteElo "2463"]
[BlackElo "2656"]
[Result "0-1"]
[Round "11"]
[TimeControl "180+1"]
[Date "2022.11.29"]
[WhiteClock "0:00:02"]
[BlackClock "0:00:49"]

1. e4 {[%clk 0:03:00]}  c6 {[%clk 0:02:45]} 2. d4 {[%clk 0:02:58]}  d5 {[%clk 0:02:45]} 3. e5 {[%clk 0:02:59]}  Bf5 {[%clk 0:02:44]} 4. Nf3 {[%clk 0:02:59]}  e6 {[%clk 0:02:44]} 5. Be2 {[%clk 0:03:00]}  Nd7 {[%clk 0:02:44]} 6. O-O {[%clk 0:02:58]}  h6 {[%clk 0:02:44]} 7. Nbd2 {[%clk 0:02:58]}  Ne7 {[%clk 0:02:44]} 8. Nb3 {[%clk 0:02:58]}  g5 {[%clk 0:02:43]} 9. Ne1 {[%clk 0:02:57]}  Bg7 {[%clk 0:02:41]} 10. f4 {[%clk 0:02:56]}  gxf4 {[%clk 0:02:41]} 11. Bd3 {[%clk 0:02:54]}  Qc7 {[%clk 0:02:38]} 12. Bxf4 {[%clk 0:02:49]}  O-O-O {[%clk 0:02:39]} 13. Bxf5 {[%clk 0:02:47]}  Nxf5 {[%clk 0:02:39]} 14. Nd3 {[%clk 0:02:48]}  Rdg8 {[%clk 0:02:40]} 15. c3 {[%clk 0:02:45]}  h5 {[%clk 0:02:40]} 16. a4 {[%clk 0:02:44]}  Bh6 {[%clk 0:02:39]} 17. Qd2 {[%clk 0:02:39]}  Bf8 {[%clk 0:02:35]} 18. a5 {[%clk 0:02:35]}  Rg6 {[%clk 0:02:35]} 19. Nbc5 {[%clk 0:02:26]}  Bxc5 {[%clk 0:02:26]} 20. dxc5 {[%clk 0:02:27]}  Rhg8 {[%clk 0:02:26]} 21. Rf2 {[%clk 0:02:22]}  a6 {[%clk 0:02:26]} 22. b4 {[%clk 0:02:18]}  h4 {[%clk 0:02:25]} 23. Raf1 {[%clk 0:02:14]}  Qd8 {[%clk 0:02:19]} 24. Qe2 {[%clk 0:02:11]}  Qf8 {[%clk 0:02:18]} 25. h3 {[%clk 0:02:00]}  Qg7 {[%clk 0:02:18]} 26. Ne1 {[%clk 0:01:54]}  f6 {[%clk 0:02:08]} 27. exf6 {[%clk 0:01:34]}  Qxf6 {[%clk 0:02:09]} 28. Qf3 {[%clk 0:01:10]}  Ne5 {[%clk 0:01:56]} 29. Qe2 {[%clk 0:00:46]}  Nc4 {[%clk 0:01:48]} 30. Bh2 {[%clk 0:00:25]}  Qxc3 {[%clk 0:01:42]} 31. Nd3 {[%clk 0:00:25]}  Nce3 {[%clk 0:01:32]} 32. Nf4 {[%clk 0:00:25]}  R6g7 {[%clk 0:00:56]} 33. Nxe6 {[%clk 0:00:13]}  Rxg2+ {[%clk 0:00:56]} 34. Kh1 {[%clk 0:00:13]}  Rxh2+ {[%clk 0:00:52]} 35. Kxh2 {[%clk 0:00:06]}  Qe5+ {[%clk 0:00:49]} 36. Nf4 {[%clk 0:00:05]}  Ng3 {[%clk 0:00:50]} 37. Qf3 {[%clk 0:00:02]}  Nexf1+ {[%clk 0:00:49]} 0-1


[Site "https://www.chess.com"]

[Event "Titled Tuesday Blitz November 29 Early 2022"]
[White "Kuchava, Ana"]
[Black "Rios Escobar, Adan"]
[WhiteFideId "13605348"]
[BlackFideId "3403645"]
[WhiteElo "2001"]
[BlackElo "2302"]
[Result "0-1"]
[Round "11"]
[TimeControl "180+1"]
[Date "2022.11.30"]
[WhiteClock "0:00:01"]
[BlackClock "0:00:17"]

1. d4 {[%clk 0:03:00]}  Nf6 {[%clk 0:02:45]} 2. Nf3 {[%clk 0:02:57]}  g6 {[%clk 0:02:44]} 3. c4 {[%clk 0:02:55]}  Bg7 {[%clk 0:02:44]} 4. Nc3 {[%clk 0:02:53]}  O-O {[%clk 0:02:42]} 5. e4 {[%clk 0:02:53]}  d6 {[%clk 0:02:42]} 6. Be2 {[%clk 0:02:52]}  Na6 {[%clk 0:02:41]} 7. O-O {[%clk 0:02:47]}  e5 {[%clk 0:02:41]} 8. Re1 {[%clk 0:02:33]}  Bg4 {[%clk 0:02:36]} 9. Be3 {[%clk 0:02:24]}  Bxf3 {[%clk 0:02:20]} 10. Bxf3 {[%clk 0:02:25]}  exd4 {[%clk 0:02:20]} 11. Bxd4 {[%clk 0:02:21]}  c6 {[%clk 0:02:14]} 12. e5 {[%clk 0:02:08]}  dxe5 {[%clk 0:02:12]} 13. Bxe5 {[%clk 0:02:09]}  Nc5 {[%clk 0:02:07]} 14. Bd6 {[%clk 0:02:07]}  Qb6 {[%clk 0:01:34]} 15. Bxf8 {[%clk 0:02:01]}  Rxf8 {[%clk 0:01:35]} 16. Qc2 {[%clk 0:01:59]}  Ne6 {[%clk 0:01:30]} 17. Rab1 {[%clk 0:01:37]}  h5 {[%clk 0:01:25]} 18. Ne4 {[%clk 0:01:27]}  Nd4 {[%clk 0:01:14]} 19. Nxf6+ {[%clk 0:01:25]}  Bxf6 {[%clk 0:01:14]} 20. Qe4 {[%clk 0:01:23]}  Kg7 {[%clk 0:01:03]} 21. b3 {[%clk 0:01:20]}  Qa5 {[%clk 0:00:53]} 22. Rbd1 {[%clk 0:00:53]}  Rd8 {[%clk 0:00:50]} 23. a4 {[%clk 0:00:20]}  Nxb3 {[%clk 0:00:44]} 24. Rxd8 {[%clk 0:00:19]}  Qxd8 {[%clk 0:00:45]} 25. Rd1 {[%clk 0:00:18]}  Nd4 {[%clk 0:00:38]} 26. c5 {[%clk 0:00:16]}  b6 {[%clk 0:00:27]} 27. cxb6 {[%clk 0:00:12]}  axb6 {[%clk 0:00:27]} 28. g3 {[%clk 0:00:11]}  c5 {[%clk 0:00:27]} 29. Kg2 {[%clk 0:00:11]}  Qd7 {[%clk 0:00:26]} 30. Qa8 {[%clk 0:00:06]}  Qf5 {[%clk 0:00:23]} 31. Qe4 {[%clk 0:00:06]}  Qd7 {[%clk 0:00:22]} 32. Qa8 {[%clk 0:00:05]}  h4 {[%clk 0:00:19]} 33. a5 {[%clk 0:00:02]}  h3+ {[%clk 0:00:19]} 34. Kg1 {[%clk 0:00:01]}  Qa4 {[%clk 0:00:17]} 0-1


[Site "https://www.chess.com"]

[Event "Titled Tuesday Blitz November 29 Early 2022"]
[White "Kuznetsov, Mikhail"]
[Black "Csonka, Balazs"]
[WhiteFideId "4117190"]
[BlackFideId "742910"]
[WhiteElo "1981"]
[BlackElo "2404"]
[Result "0-1"]
[Round "11"]
[TimeControl "180+1"]
[Date "2022.11.30"]
[WhiteClock "0:01:18"]
[BlackClock "0:00:47"]

1. Nf3 {[%clk 0:03:00]}  d5 {[%clk 0:02:57]} 2. g3 {[%clk 0:03:00]}  c5 {[%clk 0:02:57]} 3. Bg2 {[%clk 0:03:01]}  Nc6 {[%clk 0:02:58]} 4. d4 {[%clk 0:03:01]}  Nf6 {[%clk 0:02:56]} 5. O-O {[%clk 0:03:00]}  cxd4 {[%clk 0:02:57]} 6. Nxd4 {[%clk 0:03:00]}  e5 {[%clk 0:02:57]} 7. Nxc6 {[%clk 0:03:01]}  bxc6 {[%clk 0:02:58]} 8. c4 {[%clk 0:03:02]}  Be6 {[%clk 0:02:58]} 9. Nc3 {[%clk 0:03:02]}  Rc8 {[%clk 0:02:58]} 10. Bg5 {[%clk 0:03:00]}  d4 {[%clk 0:02:55]} 11. Ne4 {[%clk 0:02:46]}  Be7 {[%clk 0:02:38]} 12. Bxf6 {[%clk 0:02:41]}  Bxf6 {[%clk 0:02:38]} 13. b3 {[%clk 0:02:34]}  Be7 {[%clk 0:02:34]} 14. Qd2 {[%clk 0:02:25]}  f5 {[%clk 0:02:28]} 15. Bh3 {[%clk 0:02:25]}  Bd7 {[%clk 0:01:48]} 16. f3 {[%clk 0:01:40]}  fxe4 {[%clk 0:01:44]} 17. Bxd7+ {[%clk 0:01:39]}  Qxd7 {[%clk 0:01:43]} 18. fxe4 {[%clk 0:01:40]}  Bf6 {[%clk 0:01:43]} 19. Rf5 {[%clk 0:01:37]}  O-O {[%clk 0:01:41]} 20. Raf1 {[%clk 0:01:37]}  Rf7 {[%clk 0:01:35]} 21. g4 {[%clk 0:01:27]}  Rcf8 {[%clk 0:01:33]} 22. h3 {[%clk 0:01:26]}  g6 {[%clk 0:01:23]} 23. R5f3 {[%clk 0:01:25]}  Bd8 {[%clk 0:01:14]} 24. Qb4 {[%clk 0:01:20]}  Rxf3 {[%clk 0:01:10]} 25. Rxf3 {[%clk 0:01:20]}  Rxf3 {[%clk 0:01:09]} 26. exf3 {[%clk 0:01:21]}  d3 {[%clk 0:01:06]} 27. Qd2 {[%clk 0:01:20]}  Bb6+ {[%clk 0:00:52]} 28. Kf1 {[%clk 0:01:18]}  Qd4 {[%clk 0:00:48]} 29. c5 {[%clk 0:01:18]}  Bxc5 {[%clk 0:00:47]} 0-1


[Site "https://www.chess.com"]

[Event "Titled Tuesday Blitz November 29 Early 2022"]
[White "Levitan, Caleb Levi"]
[Black "Broca Jimenez, Fernando"]
[WhiteFideId "14332620"]
[BlackFideId "5104742"]
[WhiteElo "1963"]
[BlackElo "2062"]
[Result "1-0"]
[Round "11"]
[TimeControl "180+1"]
[Date "2022.11.30"]
[WhiteClock "0:00:19"]
[BlackClock "0:00:04"]

1. e4 {[%clk 0:02:57]}  c5 {[%clk 0:03:00]} 2. Nf3 {[%clk 0:02:56]}  d6 {[%clk 0:02:59]} 3. d4 {[%clk 0:02:56]}  cxd4 {[%clk 0:03:00]} 4. Nxd4 {[%clk 0:02:56]}  Nf6 {[%clk 0:03:01]} 5. Nc3 {[%clk 0:02:56]}  g6 {[%clk 0:03:01]} 6. Be3 {[%clk 0:02:55]}  Bg7 {[%clk 0:03:02]} 7. f3 {[%clk 0:02:41]}  O-O {[%clk 0:03:01]} 8. Qd2 {[%clk 0:02:40]}  Nc6 {[%clk 0:03:01]} 9. Bc4 {[%clk 0:02:39]}  Bd7 {[%clk 0:03:01]} 10. O-O-O {[%clk 0:02:39]}  Rc8 {[%clk 0:03:01]} 11. Bb3 {[%clk 0:02:39]}  Ne5 {[%clk 0:03:00]} 12. Kb1 {[%clk 0:02:39]}  Nc4 {[%clk 0:03:00]} 13. Bxc4 {[%clk 0:02:38]}  Rxc4 {[%clk 0:02:59]} 14. g4 {[%clk 0:02:37]}  Qc8 {[%clk 0:02:45]} 15. h4 {[%clk 0:02:30]}  h5 {[%clk 0:02:23]} 16. gxh5 {[%clk 0:02:11]}  Nxh5 {[%clk 0:02:24]} 17. Nd5 {[%clk 0:01:57]}  Re8 {[%clk 0:02:21]} 18. c3 {[%clk 0:01:49]}  e5 {[%clk 0:01:37]} 19. Ne2 {[%clk 0:01:34]}  Be6 {[%clk 0:01:25]} 20. Bh6 {[%clk 0:01:29]}  Bxd5 {[%clk 0:01:12]} 21. exd5 {[%clk 0:01:24]}  Qf5+ {[%clk 0:00:36]} 22. Ka1 {[%clk 0:01:24]}  Bxh6 {[%clk 0:00:27]} 23. Qxh6 {[%clk 0:01:22]}  Nf4 {[%clk 0:00:27]} 24. Ng3 {[%clk 0:01:08]}  Qf6 {[%clk 0:00:27]} 25. Ne4 {[%clk 0:01:02]}  Qg7 {[%clk 0:00:17]} 26. Qxg7+ {[%clk 0:00:59]}  Kxg7 {[%clk 0:00:18]} 27. Nxd6 {[%clk 0:00:59]}  Rcc8 {[%clk 0:00:18]} 28. Nxc8 {[%clk 0:00:58]}  Rxc8 {[%clk 0:00:18]} 29. d6 {[%clk 0:00:59]}  Rd8 {[%clk 0:00:18]} 30. c4 {[%clk 0:00:54]}  Kf6 {[%clk 0:00:18]} 31. c5 {[%clk 0:00:54]}  Ke6 {[%clk 0:00:18]} 32. Kb1 {[%clk 0:00:52]}  Ne2 {[%clk 0:00:18]} 33. Rhe1 {[%clk 0:00:44]}  Nf4 {[%clk 0:00:13]} 34. Re4 {[%clk 0:00:43]}  Nd5 {[%clk 0:00:13]} 35. Rde1 {[%clk 0:00:30]}  f6 {[%clk 0:00:11]} 36. f4 {[%clk 0:00:26]}  Kf7 {[%clk 0:00:02]} 37. fxe5 {[%clk 0:00:25]}  fxe5 {[%clk 0:00:03]} 38. Rxe5 {[%clk 0:00:24]}  Nf6 {[%clk 0:00:04]} 39. Rf1 {[%clk 0:00:20]}  Kg7 {[%clk 0:00:03]} 40. Re7+ {[%clk 0:00:19]}  Kh6 {[%clk 0:00:04]} 41. Rxf6 {[%clk 0:00:19]} 1-0


[Site "https://www.chess.com"]

[Event "Titled Tuesday Blitz November 29 Early 2022"]
[White "Makhmudov, Shukhrat"]
[Black "Omariev, Maksim"]
[WhiteFideId "14200775"]
[BlackFideId "4193423"]
[WhiteElo "2135"]
[BlackElo "2424"]
[Result "0-1"]
[Round "11"]
[TimeControl "180+1"]
[Date "2022.11.30"]
[WhiteClock "0:00:15"]
[BlackClock "0:02:07"]

1. e4 {[%clk 0:03:00]}  c5 {[%clk 0:03:00]} 2. Nf3 {[%clk 0:03:00]}  d6 {[%clk 0:03:00]} 3. d4 {[%clk 0:02:59]}  cxd4 {[%clk 0:03:01]} 4. Nxd4 {[%clk 0:03:00]}  Nf6 {[%clk 0:03:02]} 5. Nc3 {[%clk 0:03:00]}  a6 {[%clk 0:03:02]} 6. h3 {[%clk 0:03:01]}  e6 {[%clk 0:03:02]} 7. g4 {[%clk 0:02:59]}  Nfd7 {[%clk 0:03:02]} 8. Bg2 {[%clk 0:02:56]}  Qc7 {[%clk 0:03:03]} 9. Be3 {[%clk 0:02:56]}  b5 {[%clk 0:03:04]} 10. a3 {[%clk 0:02:55]}  Bb7 {[%clk 0:03:05]} 11. Qd2 {[%clk 0:02:54]}  Nb6 {[%clk 0:03:05]} 12. b3 {[%clk 0:02:22]}  N8d7 {[%clk 0:03:05]} 13. O-O {[%clk 0:02:09]}  Rc8 {[%clk 0:03:05]} 14. Nde2 {[%clk 0:02:02]}  Be7 {[%clk 0:03:03]} 15. Rac1 {[%clk 0:01:55]}  O-O {[%clk 0:02:54]} 16. Na2 {[%clk 0:01:55]}  d5 {[%clk 0:02:49]} 17. exd5 {[%clk 0:01:49]}  Nxd5 {[%clk 0:02:50]} 18. Bd4 {[%clk 0:01:43]}  Bxa3 {[%clk 0:02:46]} 19. c4 {[%clk 0:00:55]}  Bxc1 {[%clk 0:02:41]} 20. Rxc1 {[%clk 0:00:53]}  bxc4 {[%clk 0:02:41]} 21. bxc4 {[%clk 0:00:28]}  N5f6 {[%clk 0:02:39]} 22. Bxb7 {[%clk 0:00:22]}  Qxb7 {[%clk 0:02:40]} 23. c5 {[%clk 0:00:20]}  Ne4 {[%clk 0:02:37]} 24. Qe3 {[%clk 0:00:19]}  e5 {[%clk 0:02:35]} 25. Ba1 {[%clk 0:00:18]}  Nexc5 {[%clk 0:02:34]} 26. Nac3 {[%clk 0:00:18]}  Nb3 {[%clk 0:02:32]} 27. Rb1 {[%clk 0:00:17]}  Rb8 {[%clk 0:02:28]} 28. Ne4 {[%clk 0:00:17]}  Qd5 {[%clk 0:02:21]} 29. N2c3 {[%clk 0:00:17]}  Qc4 {[%clk 0:02:21]} 30. Rd1 {[%clk 0:00:16]}  Ndc5 {[%clk 0:02:20]} 31. Qg5 {[%clk 0:00:15]}  Nxe4 {[%clk 0:02:12]} 32. Qxe5 {[%clk 0:00:15]}  Nxc3 {[%clk 0:02:08]} 33. Bxc3 {[%clk 0:00:15]}  f6 {[%clk 0:02:09]} 34. Qf5 {[%clk 0:00:15]}  Qxc3 {[%clk 0:02:07]} 0-1


[Site "https://www.chess.com"]